fUST/lending_fUST_20260114
["ID","MTS","AMOUNT","RATE_DAILY","PERIOD"]
[401865971,1768390253278,-216.477356,0.00026,7]
[401865972,1768390253288,-151.0,0.00026,7]
[401865975,1768390253298,-428.566923,0.00026,7]
[401865977,1768390253310,-216.477356,0.00026,7]
[401865979,1768390253320,-428.566923,0.00026,7]
[401865981,1768390253330,-151.0,0.00026,7]
[401865983,1768390253339,-216.477356,0.00026,7]
[401865985,1768390253349,-428.566923,0.00026,7]
[401865987,1768390253359,-163.521598,0.00026,7]
[401865989,1768390253368,-151.0,0.00026,7]
[401865991,1768390253379,-666.883218,0.00026,7]
[401865993,1768390253389,-666.883218,0.00026,7]
[401865994,1768390253399,-151.0,0.00026,7]
[401865996,1768390253410,-666.883218,0.00026,7]
[401865998,1768390253419,-666.883218,0.00026,7]
[401866000,1768390253430,-894.119727,0.00026,7]
[401866002,1768390253446,-894.119727,0.00026,7]
[401866004,1768390253455,-894.119727,0.00026,7]
[401866006,1768390253466,-894.119727,0.00026,7]
[401866008,1768390253475,-6803.24817253,0.00026,10]
[401866010,1768390253487,-1041.66666667,0.00026,10]
[401866012,1768390253497,-530.08019871,0.00026,2]
[401866014,1768390253509,-271732.79385738,0.00026,30]
[401866016,1768390253519,-19900.0,0.00026,2]
[401866018,1768390253528,-746.98816634,0.00026,120]
[401866020,1768390253538,-161.0,0.00026,5]
[401866022,1768390253548,-1020.0,0.00026,2]
[401866024,1768390253558,-1041.66666667,0.00026,30]
[401866026,1768390253568,-1041.66666667,0.00026,3]
[401866028,1768390253579,-4638.75,0.00026027,2]
[401866031,1768390253590,-2840.37309884,0.00026055,2]
[401866032,1768390253599,-155.0,0.0002611,14]
[401866035,1768390253609,-499.3,0.00026116,7]
[401866037,1768390253620,-242.15909246,0.00026138,2]
[401866039,1768390253630,-3207.40519818,0.00026138,2]
[401866041,1768390253640,-663.93287602,0.00026138,2]
[401866060,1768390253825,-431.74536,0.00026148,7]
[401866061,1768390253834,-431.74536,0.00026148,7]
[401866063,1768390253844,-151.0,0.00026148,7]
[401866065,1768390253853,-431.74536,0.00026148,7]
[401866067,1768390253862,-431.74536,0.00026148,7]
[401866069,1768390253872,-151.0,0.00026148,7]
[401866071,1768390253881,-3688.352014,0.00026148,7]
[401866073,1768390253891,-3688.352014,0.00026148,7]
[401866075,1768390253901,-151.0,0.00026148,7]
[401866077,1768390253911,-3688.352014,0.00026148,7]
[401866079,1768390253921,-3688.352014,0.00026148,7]
[401866081,1768390253932,-183.080684,0.00026148,7]
[401866083,1768390253942,-261.329291,0.00026148,7]
[401866085,1768390253951,-261.329291,0.00026148,7]
[401866087,1768390253960,-261.329291,0.00026148,7]
[401866089,1768390253970,-261.329291,0.00026148,7]
[401866091,1768390253980,-151.3487,0.00026148,7]
[401866093,1768390253989,-151.0,0.00026148,7]
[401866095,1768390253998,-151.3487,0.00026148,7]
[401866097,1768390254007,-151.3487,0.00026148,7]
[401866099,1768390254017,-151.3487,0.00026148,7]
[401866101,1768390254026,-151.0,0.00026148,7]
[401866102,1768390254035,-151.0,0.00026148,7]
[401866104,1768390254045,-5888.0,0.00026148,2]
[401866106,1768390254054,-194.72949231,0.0002616,2]
[401866108,1768390254064,-1700.0,0.00026162,7]
[401866110,1768390254073,-500.0,0.00026203,7]
[401866112,1768390254083,-1000.0,0.00026224,7]
[401866114,1768390254092,-1700.0,0.00026251,7]
[401866116,1768390254102,-1000.0,0.00026251,7]
[401866118,1768390254111,-450.0,0.00026301,2]
[401866120,1768390254122,-1450.0,0.00026301,2]
[401866122,1768390254131,-728.0,0.00026429,3]
[401866124,1768390254140,-728.0,0.00026429,3]
[401866126,1768390254149,-1700.0,0.00026441,7]
[401866128,1768390254159,-12705.37423421,0.00026458,2]
[401866130,1768390254168,-1000.0,0.00026491,30]
[401866132,1768390254179,-1000.0,0.00026491,30]
[401866134,1768390254189,-1000.0,0.00026491,30]
[401866136,1768390254199,-715.0,0.00026491,30]
[401866138,1768390254210,-2840.37309884,0.00026495,2]
[401866140,1768390254219,-800.0,0.00026516,7]
[401866142,1768390254228,-200.0,0.0002654,14]
[401866144,1768390254238,-1700.0,0.00026551,7]
[401866146,1768390254247,-500.0,0.00026624,7]
[401866148,1768390254257,-156.0,0.00026658,21]
[401866150,1768390254266,-1145.51309932,0.00026663,22]
[401866152,1768390254275,-620.66490016,0.0002667,30]
[401866154,1768390254285,-265.87708981,0.00026686,2]
[401866156,1768390254294,-3326.07919052,0.00026686,2]
[401866158,1768390254304,-688.49839244,0.00026686,2]
[401866160,1768390254314,-800.0,0.00026688,7]
[401866162,1768390254323,-1700.0,0.0002669,7]
[401866164,1768390254333,-5000.0,0.00026698,2]
[401866166,1768390254342,-1700.0,0.00026744,7]
[401866168,1768390254352,-2840.37309884,0.00026746,2]
[401866170,1768390254361,-800.0,0.00026753,7]
[401866172,1768390254371,-1700.0,0.00026761,7]
[401866174,1768390254381,-500.0,0.00026775,7]
[401866176,1768390254391,-800.0,0.00026784,7]
[401866177,1768390254400,-1041.66666667,0.000268,30]
[401866179,1768390254410,-1077.0,0.00026811,2]
[401866181,1768390254420,-1700.0,0.00026834,7]
[401866183,1768390254430,-550.0,0.00026849,2]
[401866186,1768390254445,-1550.0,0.00026849,2]
[401866187,1768390254455,-2000.0,0.00026849,7]
[401866189,1768390254464,-2840.37309884,0.00026878,2]
[401866191,1768390254474,-500.0,0.0002692,7]
[401866193,1768390254484,-3000.0,0.00027,120]
[401866195,1768390254493,-1041.66666667,0.00027,7]
[401866197,1768390254504,-167.77,0.00027,7]
[401866199,1768390254515,-600.0,0.00027,14]
[401866201,1768390254525,-1020.0,0.00027,2]
[401866203,1768390254534,-632.0,0.00027094,120]
[401866205,1768390254544,-380.0,0.00027094,120]
[401866207,1768390254554,-1700.0,0.00027099,7]
[401866209,1768390254563,-316.42,0.000271,7]
[401866211,1768390254572,-316.46,0.000271,7]
[401866213,1768390254582,-5432.92,0.000271,14]
[401866215,1768390254591,-40340.44,0.000271,2]
[401866216,1768390254600,-151.0,0.00027102,7]
[401866218,1768390254609,-176.527375,0.00027102,7]
[401866220,1768390254618,-151.0,0.00027102,7]
[401866222,1768390254627,-151.0,0.00027102,7]
[401866224,1768390254636,-151.0,0.00027102,7]
[401866226,1768390254646,-490.347103,0.00027102,7]
[401866228,1768390254655,-490.347103,0.00027102,7]
[401866230,1768390254665,-490.347103,0.00027102,7]
[401866232,1768390254675,-490.347103,0.00027102,7]
[401866234,1768390254684,-487.891031,0.00027102,7]
[401866237,1768390254701,-487.891031,0.00027102,7]
[401866239,1768390254713,-487.891031,0.00027102,7]
[401866241,1768390254723,-487.891031,0.00027102,7]
[401866243,1768390254733,-490.971226,0.00027102,7]
[401866245,1768390254743,-490.971226,0.00027102,7]
[401866247,1768390254752,-490.971226,0.00027102,7]
[401866249,1768390254762,-490.971226,0.00027102,7]
[401866251,1768390254772,-505.094065,0.00027102,7]
[401866253,1768390254781,-505.094065,0.00027102,7]
[401866255,1768390254791,-505.094065,0.00027102,7]
[401866257,1768390254800,-505.094065,0.00027102,7]
[401866259,1768390254810,-151.0,0.00027102,7]
[401866261,1768390254819,-151.0,0.00027102,7]
[401866263,1768390254828,-37341.312604,0.00027141,30]
[401866265,1768390254838,-8262.950258,0.00027141,30]
[401866267,1768390254848,-22470.88731642,0.00027146,2]
[401866269,1768390254858,-1000.0,0.00027168,7]
[401866271,1768390254867,-157.0,0.00027205,23]
[401866273,1768390254877,-1594.41498494,0.0002722,7]
[401866275,1768390254887,-3449.14412057,0.00027234,2]
[401866277,1768390254896,-713.97283296,0.00027234,2]
[401866279,1768390254906,-500.0,0.00027237,7]
[401866281,1768390254916,-2840.37309884,0.00027276,2]
[401866283,1768390254926,-591.12357233,0.00027295,7]
[401866285,1768390254936,-800.0,0.00027312,7]
[401866287,1768390254946,-2947.20552054,0.00027333,7]
[401866290,1768390254955,-800.0,0.00027367,7]
[401866291,1768390254965,-1296.0967193,0.0002739,7]
[401866293,1768390254975,-1975.99083678,0.0002739,120]
[401866295,1768390254984,-394.15965016,0.0002739,7]
[401866297,1768390254992,-1145.4069738,0.00027397,120]
[401866299,1768390255002,-321.70988253,0.00027397,3]
[401866301,1768390255011,-1325.0,0.00027397,120]
[401866303,1768390255021,-650.0,0.00027397,5]
[401866305,1768390255030,-300.0,0.00027397,2]
[401866307,1768390255039,-300.0,0.00027397,2]
[401866309,1768390255049,-300.0,0.00027397,2]
[401866312,1768390255058,-300.0,0.00027397,2]
[401866314,1768390255067,-300.0,0.00027397,2]
[401866316,1768390255076,-300.0,0.00027397,2]
[401866317,1768390255085,-300.0,0.00027397,2]
[401866320,1768390255095,-300.0,0.00027397,2]
[401866322,1768390255104,-300.0,0.00027397,2]
[401866324,1768390255113,-156.87039,0.00027397,7]
[401866326,1768390255122,-500.0,0.00027397,5]
[401866327,1768390255131,-157.45506808,0.00027397,5]
[401866330,1768390255142,-1650.0,0.00027397,5]
[401866332,1768390255151,-515.68473116,0.00027397,5]
[401866334,1768390255160,-2840.37309884,0.00027475,2]
[401866335,1768390255170,-160.18656469,0.00027499,10]
[401866337,1768390255179,-1524.22564047,0.000275,120]
[401866338,1768390255188,-45974.0104959,0.000275,2]
[401866340,1768390255198,-2147.0,0.00027559,2]
[401866342,1768390255207,-629.0,0.00027559,2]
[401866344,1768390255216,-1367.0,0.00027559,2]
[401866346,1768390255226,-430.0,0.00027559,2]
[401866348,1768390255236,-417.0,0.00027559,2]
[401866350,1768390255246,-715.0,0.00027559,2]
[401866353,1768390255256,-197.967,0.00027559,2]
[401866355,1768390255267,-1041.66666667,0.000276,30]
[401866356,1768390255277,-5000.0,0.00027626,2]
[401866358,1768390255286,-4638.75,0.00027671,4]
[401866360,1768390255296,-1145.51309932,0.00027691,23]
[401866362,1768390255305,-2222.24,0.000277,7]
[401866364,1768390255316,-196.495,0.00027752,17]
[401866366,1768390255326,-190.0,0.00027753,26]
[401866368,1768390255335,-1000.0,0.00027777,5]
[401866370,1768390255345,-3576.76245303,0.00027782,2]
[401866372,1768390255355,-740.38982778,0.00027782,2]
[401866374,1768390255364,-180.0,0.0002783,120]
[401866375,1768390255374,-180.0,0.0002783,120]
[401866377,1768390255384,-2840.37309884,0.00027857,2]
[401866378,1768390255393,-1725.95699694,0.00027906,2]
[401866380,1768390255403,-750.0,0.00027945,5]
[401866382,1768390255412,-1000.0,0.00027945,5]
[401866384,1768390255421,-250.0,0.00027945,5]
[401866386,1768390255433,-1750.0,0.00027945,5]
[401866387,1768390255447,-250.0,0.00027945,5]
[401866389,1768390255457,-3000.0,0.00028,120]
[401866391,1768390255466,-15332.50098657,0.00028,2]
[401866393,1768390255477,-2583.99413959,0.00028,2]
[401866395,1768390255486,-520.63777123,0.00028,2]
[401866396,1768390255496,-1257.80356366,0.00028,120]
[401866398,1768390255506,-1020.0,0.00028,2]
[401866400,1768390255517,-620.03324501,0.00028004,120]
[401866402,1768390255527,-2840.37309884,0.000281,2]
[401866404,1768390255536,-2000.0,0.00028164,7]
[401866406,1768390255546,-800.0,0.00028179,2]
[401866407,1768390255555,-1077.0,0.00028232,5]
[401866409,1768390255565,-2840.37309884,0.00028261,2]
[401866411,1768390255574,-377.0831682,0.00028277,30]
[401866413,1768390255583,-178.0,0.00028301,28]
[401866414,1768390255593,-3709.10266379,0.0002833,2]
[401866416,1768390255602,-767.7842514,0.0002833,2]
[401866418,1768390255611,-2126.779717,0.0002835,30]
[401866420,1768390255621,-12705.37423421,0.00028419,2]
[401866422,1768390255631,-2000.0,0.00028425,7]
[401866424,1768390255639,-2000.0,0.00028434,7]
[401866425,1768390255649,-2000.0,0.00028442,7]
[401866427,1768390255658,-632.0,0.00028448,120]
[401866429,1768390255669,-380.0,0.00028448,120]
[401866431,1768390255679,-2000.0,0.00028451,7]
[401866433,1768390255689,-1206.4488989,0.0002849,120]
[401866434,1768390255700,-850.0,0.00028493,5]
[401866436,1768390255709,-1349.80836073,0.00028493,5]
[401866438,1768390255718,-350.0,0.00028493,5]
[401866439,1768390255727,-1850.0,0.00028493,5]
[401866441,1768390255736,-350.0,0.00028493,5]
[401866443,1768390255745,-40340.44,0.000285,2]
[401866445,1768390255754,-3000.0,0.000285,2]
[401866446,1768390255763,-213785.71144258,0.000285,7]
[401866448,1768390255773,-161.506342,0.000285,7]
[401866450,1768390255782,-151.0,0.000285,2]
[401866452,1768390255791,-151.0,0.000285,7]
[401866453,1768390255800,-151.0,0.000285,7]
[401866455,1768390255809,-151.0,0.000285,7]
[401866457,1768390255818,-1838.09205,0.000285,7]
[401866459,1768390255827,-1838.09205,0.000285,7]
[401866460,1768390255836,-1838.09205,0.000285,7]
[401866462,1768390255845,-1838.09205,0.000285,7]
[401866464,1768390255854,-151.0,0.000285,7]
[401866466,1768390255863,-671.695781,0.000285,7]
[401866468,1768390255872,-671.695781,0.000285,7]
[401866469,1768390255881,-671.695781,0.000285,7]
[401866471,1768390255890,-671.695781,0.000285,7]
[401866472,1768390255899,-151.0,0.000285,7]
[401866474,1768390255908,-285.163634,0.000285,7]
[401866476,1768390255917,-713.0,0.00028536,3]
[401866478,1768390255927,-5000.0,0.00028555,2]
[401866479,1768390255937,-2840.37309884,0.00028568,2]
[401866481,1768390255946,-316.42,0.000286,7]
[401866483,1768390255957,-316.46,0.000286,7]
[401866485,1768390255966,-5432.92,0.000286,14]
[401866487,1768390255975,-2000.0,0.00028692,7]
[401866489,1768390255984,-9254.21,0.000287,4]
[401866490,1768390255994,-2000.0,0.00028701,7]
[401866492,1768390256003,-2000.0,0.0002871,7]
[401866494,1768390256012,-2000.0,0.00028718,7]
[401866496,1768390256021,-1145.51309932,0.00028719,25]
[401866498,1768390256031,-2000.0,0.00028727,7]
[401866499,1768390256040,-2000.0,0.00028736,7]
[401866501,1768390256049,-2000.0,0.00028745,7]
[401866503,1768390256058,-2000.0,0.00028754,7]
[401866505,1768390256067,-363.74855631,0.0002876,120]
[401866507,1768390256076,-164.44294239,0.0002876,120]
[401866509,1768390256085,-2000.0,0.00028762,7]
[401866510,1768390256094,-712.833248,0.00028767,60]
[401866512,1768390256104,-2000.0,0.00028771,7]
[401866514,1768390256113,-2000.0,0.0002878,7]
[401866516,1768390256122,-2000.0,0.00028789,7]
[401866517,1768390256131,-2000.0,0.00028798,7]
[401866519,1768390256140,-2000.0,0.00028806,7]
[401866521,1768390256149,-2000.0,0.00028815,7]
[401866523,1768390256159,-2000.0,0.00028824,7]
[401866525,1768390256168,-2000.0,0.00028833,7]
[401866527,1768390256177,-2000.0,0.00028842,7]
[401866529,1768390256187,-166.0,0.00028849,31]
[401866530,1768390256195,-2000.0,0.0002885,7]
[401866532,1768390256205,-2000.0,0.00028859,7]
[401866534,1768390256220,-2000.0,0.00028868,7]
[401866536,1768390256229,-2000.0,0.00028877,7]
[401866538,1768390256239,-3846.33946235,0.00028878,2]
[401866540,1768390256248,-796.19226871,0.00028878,2]
[401866542,1768390256257,-2000.0,0.00028886,7]
[401866544,1768390256267,-2000.0,0.00028894,7]
[401866545,1768390256276,-2000.0,0.00028903,7]
[401866547,1768390256285,-2000.0,0.00028912,7]
[401866549,1768390256294,-2000.0,0.00028921,7]
[401866551,1768390256304,-2000.0,0.0002893,7]
[401866552,1768390256313,-2000.0,0.00028938,7]
[401866554,1768390256323,-2840.37309884,0.00028944,2]
[401866556,1768390256332,-2000.0,0.00028947,7]
[401866558,1768390256341,-2000.0,0.00028956,7]
[401866560,1768390256351,-2000.0,0.00028965,7]
[401866561,1768390256361,-2000.0,0.00028974,7]
[401866563,1768390256371,-2000.0,0.00028982,7]
[401866565,1768390256381,-2000.0,0.00028991,7]
[401866567,1768390256391,-3000.0,0.00029,120]
[401866569,1768390256401,-5738.19495594,0.00029,7]
[401866570,1768390256411,-2000.0,0.00029,7]
[401866572,1768390256420,-6037.79097668,0.00029,7]
[401866574,1768390256430,-809.19299807,0.00029,7]
[401866576,1768390256444,-8956.96368904,0.00029,7]
[401866577,1768390256454,-720.60102873,0.00029,7]
[401866579,1768390256464,-1020.0,0.00029,2]
[401866581,1768390256473,-3236.77199226,0.00029,7]
[401866583,1768390256483,-22041.69022047,0.0002902,2]
[401866585,1768390256492,-950.0,0.00029041,5]
[401866586,1768390256502,-450.0,0.00029041,5]
[401866588,1768390256511,-1006.71612592,0.00029041,5]
[401866590,1768390256520,-281.07735056,0.00029041,5]
[401866592,1768390256530,-2840.37309884,0.00029138,2]
[401866593,1768390256539,-1000.0,0.0002914,30]
[401866595,1768390256548,-1000.0,0.0002914,30]
[401866597,1768390256558,-1000.0,0.0002914,30]
[401866599,1768390256568,-1297.08185171,0.00029172,7]
[401866601,1768390256577,-649.0,0.00029242,120]
[401866603,1768390256587,-4638.75,0.00029315,6]
[401866604,1768390256596,-302.0,0.00029397,34]
[401866606,1768390256605,-3988.65402246,0.00029426,2]
[401866608,1768390256615,-825.65138265,0.00029426,2]
[401866610,1768390256625,-2000.0,0.00029479,7]
[401866612,1768390256634,-5000.0,0.00029483,2]
[401866613,1768390256643,-532.38769963,0.000295,120]
[401866615,1768390256653,-167.12486556,0.00029532,5]
[401866617,1768390256663,-2840.37309884,0.00029559,2]
[401866619,1768390256673,-155.8641931,0.0002958,30]
[401866621,1768390256682,-1217.0711899,0.0002958,30]
[401866623,1768390256691,-1910.0,0.00029589,120]
[401866625,1768390256700,-500.0,0.00029589,60]
[401866626,1768390256709,-500.0,0.00029589,60]
[401866628,1768390256718,-832.0,0.00029589,60]
[401866630,1768390256727,-500.0,0.00029589,60]
[401866632,1768390256737,-500.0,0.00029589,60]
[401866634,1768390256745,-500.0,0.00029589,60]
[401866635,1768390256755,-500.0,0.00029589,60]
[401866637,1768390256765,-500.0,0.00029589,60]
[401866639,1768390256774,-500.0,0.00029589,60]
[401866641,1768390256783,-500.0,0.00029589,60]
[401866643,1768390256792,-500.0,0.00029589,60]
[401866645,1768390256801,-240.44633049,0.00029589,60]
[401866646,1768390256811,-500.0,0.00029589,60]
[401866648,1768390256820,-1050.0,0.00029589,5]
[401866650,1768390256829,-550.0,0.00029589,5]
[401866652,1768390256838,-180.09725252,0.00029595,4]
[401866654,1768390256848,-2222.24,0.000296,7]
[401866656,1768390256857,-200.0,0.000296,120]
[401866658,1768390256866,-200.0,0.000296,120]
[401866659,1768390256875,-200.0,0.000296,120]
[401866661,1768390256884,-2305.92329193,0.00029601,7]
[401866663,1768390256893,-1077.0,0.00029652,7]
[401866665,1768390256902,-2840.37309884,0.0002966,2]
[401866667,1768390256912,-480.58545531,0.0002968,2]
[401866669,1768390256922,-865.05381956,0.0002968,2]
[401866670,1768390256932,-1537.873457,0.0002968,2]
[401866672,1768390256942,-2402.92727657,0.0002968,2]
[401866674,1768390256952,-3460.21527825,0.0002968,2]
[401866676,1768390256962,-4709.73746207,0.0002968,2]
[401866678,1768390256971,-6151.49382801,0.0002968,2]
[401866680,1768390256980,-7785.48437607,0.0002968,2]
[401866682,1768390256990,-9611.70910626,0.0002968,2]
[401866684,1768390256999,-11630.16801858,0.0002968,2]
[401866685,1768390257009,-13840.86111302,0.0002968,2]
[401866687,1768390257018,-264.54386475,0.00029682,2]
[401866689,1768390257028,-1058.17545901,0.00029682,2]
[401866691,1768390257038,-2380.89478277,0.00029682,2]
[401866693,1768390257047,-4232.70183604,0.00029682,2]
[401866695,1768390257056,-6613.59661881,0.00029682,2]
[401866697,1768390257065,-9523.57913108,0.00029682,2]
[401866698,1768390257074,-475.0,0.00029695,120]
[401866700,1768390257083,-475.0,0.00029695,120]
[401866702,1768390257092,-475.0,0.00029695,120]
[401866704,1768390257101,-475.0,0.00029695,120]
[401866706,1768390257110,-475.0,0.00029695,120]
[401866707,1768390257119,-475.0,0.00029695,120]
[401866709,1768390257128,-475.0,0.00029695,120]
[401866711,1768390257137,-475.0,0.00029695,120]
[401866713,1768390257148,-475.0,0.00029695,120]
[401866715,1768390257157,-475.0,0.00029695,120]
[401866717,1768390257166,-475.0,0.00029695,120]
[401866719,1768390257176,-475.0,0.00029695,120]
[401866721,1768390257186,-475.0,0.00029695,120]
[401866723,1768390257195,-475.0,0.00029695,120]
[401866724,1768390257204,-475.0,0.00029695,120]
[401866726,1768390257214,-475.0,0.00029695,120]
[401866728,1768390257224,-475.0,0.00029695,120]
[401866730,1768390257234,-475.0,0.00029695,120]
[401866732,1768390257243,-475.0,0.00029695,120]
[401866734,1768390257252,-475.0,0.00029695,120]
[401866736,1768390257262,-475.0,0.00029695,120]
[401866738,1768390257272,-475.0,0.00029695,120]
[401866740,1768390257281,-475.0,0.00029695,120]
[401866741,1768390257291,-475.0,0.00029695,120]
[401866743,1768390257300,-475.0,0.00029695,120]
[401866745,1768390257310,-475.0,0.00029695,120]
[401866747,1768390257320,-475.0,0.00029695,120]
[401866749,1768390257330,-475.0,0.00029695,120]
[401866751,1768390257339,-1910.0,0.00029726,120]
[401866771,1768390257348,-500.0,0.00029726,60]
[401866774,1768390257565,-500.0,0.00029726,60]
[401866776,1768390257574,-832.0,0.00029726,60]
[401866778,1768390257583,-580.25340699,0.00029726,60]
[401866779,1768390257592,-500.0,0.00029726,60]
[401866781,1768390257601,-500.0,0.00029726,60]
[401866783,1768390257611,-500.0,0.00029726,60]
[401866785,1768390257620,-500.0,0.00029726,60]
[401866787,1768390257629,-500.0,0.00029726,60]
[401866789,1768390257637,-500.0,0.00029726,60]
[401866791,1768390257647,-500.0,0.00029726,60]
[401866793,1768390257656,-500.0,0.00029726,60]
[401866795,1768390257668,-1145.51309932,0.00029747,26]
[401866797,1768390257678,-3000.0,0.00029768,14]
[401866799,1768390257687,-2000.0,0.00029768,120]
[401866801,1768390257696,-2000.0,0.00029768,120]
[401866802,1768390257706,-2000.0,0.00029768,120]
[401866804,1768390257715,-2000.0,0.00029768,120]
[401866806,1768390257725,-2000.0,0.00029768,120]
[401866808,1768390257734,-2000.0,0.00029768,120]
[401866810,1768390257743,-2000.0,0.00029768,120]
[401866812,1768390257753,-2000.0,0.00029768,120]
[401866814,1768390257762,-2000.0,0.00029768,120]
[401866816,1768390257771,-2000.0,0.00029768,120]
[401866817,1768390257781,-2000.0,0.00029768,120]
[401866819,1768390257790,-2000.0,0.00029768,120]
[401866821,1768390257802,-2000.0,0.00029768,120]
[401866823,1768390257811,-2000.0,0.00029768,120]
[401866825,1768390257820,-2000.0,0.00029768,120]
[401866827,1768390257830,-996.312,0.00029768,120]
[401866829,1768390257839,-1000.0,0.00029768,120]
[401866831,1768390257848,-1000.0,0.00029768,120]
[401866832,1768390257857,-1000.0,0.00029768,120]
[401866834,1768390257867,-1000.0,0.00029768,120]
[401866836,1768390257876,-1000.0,0.00029768,120]
[401866838,1768390257885,-1000.0,0.00029768,120]
[401866840,1768390257895,-1000.0,0.00029768,120]
[401866842,1768390257904,-1000.0,0.00029768,120]
[401866844,1768390257914,-1000.0,0.00029768,120]
[401866846,1768390257923,-76030.36779662,0.000298,5]
[401866941,1768390259577,-500.0,0.00013698,2]
[401866942,1768390259586,-500.0,0.00013698,2]
[401866943,1768390259595,-500.0,0.00013698,2]
[401866944,1768390259605,-500.0,0.00013698,2]
[401866945,1768390259615,-220.95930405,0.00013698,2]
[401866946,1768390259625,-1204.22,0.00019178,2]
[401866947,1768390259634,-250.0,0.00020658,2]
[401866948,1768390259643,-249.4873785,0.00020658,2]
[401866949,1768390259652,-2105.41764886,0.00020768,2]
[401866950,1768390259661,-2183.31810187,0.00020823,2]
[401866951,1768390259674,-2264.10087164,0.00020878,2]
[401866952,1768390259683,-2347.87260389,0.00020933,2]
[401866953,1768390259692,-2434.74389024,0.00020988,2]
[401866954,1768390259702,-2524.82941417,0.00021043,2]
[401866955,1768390259711,-302.33134328,0.00021098,2]
[401866956,1768390259720,-638.0,0.00026058,120]
[401866957,1768390259729,-1035.152511,0.00027123,3]
[401866958,1768390259738,-638.0,0.00027361,120]
[401866959,1768390259747,-638.0,0.00028729,120]
[401866960,1768390259756,-475.0,0.00029695,120]
[401866961,1768390259766,-475.0,0.00029695,120]
[401866962,1768390259776,-475.0,0.00029695,120]
[401866963,1768390259785,-475.0,0.00029695,120]
[401866964,1768390259794,-475.0,0.00029695,120]
[401866965,1768390259803,-475.0,0.00029695,120]
[401866966,1768390259813,-475.0,0.00029695,120]
[401866967,1768390259823,-475.0,0.00029695,120]
[401866968,1768390259832,-475.0,0.00029695,120]
[401866969,1768390259841,-475.0,0.00029695,120]
[401866970,1768390259850,-475.0,0.00029695,120]
[401866971,1768390259859,-475.0,0.00029695,120]
[401866972,1768390259869,-475.0,0.00029695,120]
[401866973,1768390259879,-475.0,0.00029695,120]
[401866974,1768390259889,-475.0,0.00029695,120]
[401866975,1768390259898,-475.0,0.00029695,120]
[401866976,1768390259908,-475.0,0.00029695,120]
[401866977,1768390259918,-475.0,0.00029695,120]
[401866978,1768390259926,-475.0,0.00029695,120]
[401866979,1768390259935,-475.0,0.00029695,120]
[401866980,1768390259944,-475.0,0.00029695,120]
[401866981,1768390259953,-475.0,0.00029695,120]
[401866982,1768390259962,-475.0,0.00029695,120]
[401866983,1768390259972,-148216.0669325,0.000298,5]
[401866985,1768390259984,-27623.68249789,0.000298,5]
[401867002,1768390533095,10000.01,8.925e-05,2]
[401867003,1768390533117,1579.117755,8.925e-05,2]
[401867009,1768390802976,165.22,3e-05,2]
[401867010,1768390803378,165.22,3.3e-05,2]
[401867011,1768390803730,165.22,3.5e-05,2]
[401867012,1768390804040,165.22,3.8e-05,2]
[401867013,1768390804350,165.22,4e-05,2]
[401867014,1768390804690,165.22,4.3e-05,2]
[401867015,1768390804993,165.22,4.5e-05,2]
[401867016,1768390805298,165.22,4.8e-05,2]
[401867017,1768390805624,165.22,5e-05,2]
[401867019,1768390872071,-300.0,9.802e-05,2]